Workbook

Sheet Таблица пантонов
A1: В данной таблице представлены цвета Pantone с раскладкой по RGB и HEX. Просим Вас учесть тот факт, что отображение цветов на экране может немного отклоняться от фактических цветов. Это связано с тем, что каждый монитор в зависимости от настроек передает изображение по своему.
C2: R | D2: G | E2: B | G2: Цветов
A3: Yellow 012 | C3: 247 | D3: 217 | E3: 23 | G3: 8
C4: =INDEX(C$6:C$1348,MATCH($A$3,$A$6:$A$1348,)) -> 247 | D4: =INDEX(D$6:D$1348,MATCH($A$3,$A$6:$A$1348,)) -> 217 | E4: 23
A5: Pantone | B5: Colour | C5: R | D5: G | E5: B | F5: Кв.Откл. | G5: Ранг
A6: Yellow | C6: 247 | D6: 224 | E6: 23 | F6: =SUMXMY2(C6:E6,C$3:E$3) -> 49 | G6: =RANK(F6,$F$6:$F$1348,1) -> 4
A7: Yellow 012 | C7: 247 | D7: 217 | E7: 23 | F7: =SUMXMY2(C7:E7,C$3:E$3) -> 0 | G7: =RANK(F7,$F$6:$F$1348,1) -> 1
A8: Orange 021 | C8: 237 | D8: 110 | E8: 0 | F8: 12078 | G8: 136
A9: Warm Red | C9: 245 | D9: 64 | E9: 41 | F9: 23737 | G9: 315
A10: Red 032 | C10: 237 | D10: 46 | E10: 56 | F10: 30430 | G10: 472
A11: Rubine Red | C11: 207 | D11: 3 | E11: 92 | F11: 52157 | G11: 964
A12: Rhodamine Red | C12: 230 | D12: 0 | E12: 148 | F12: 63003 | G12: 1070
A13: Purple | C13: 186 | D13: 31 | E13: 181 | F13: 63281 | G13: 1075
A14: Violet | C14: 102 | D14: 0 | E14: 161 | F14: 87158 | G14: 1246
A15: Blue 072 | C15: 41 | D15: 5 | E15: 161 | F15: 106424 | G15: 1339
A16: Reflex Blue | C16: 23 | D16: 23 | E16: 150 | F16: 103941 | G16: 1332
A17: Process Blue | C17: 0 | D17: 140 | E17: 204 | F17: 99699 | G17: 1320
A18: Green | C18: 0 | D18: 179 | E18: 148 | F18: 78078 | G18: 1191
A19: Black | C19: 51 | D19: 43 | E19: 36 | F19: 68861 | G19: 1125
A20: Process Yellow | C20: 245 | D20: 230 | E20: 23 | F20: 173 | G20: 11
A21: Process Magenta | C21: 214 | D21: 0 | E21: 110 | F21: 55747 | G21: 1002
A22: Process Cyan | C22: 0 | D22: 166 | E22: 214 | F22: 100091 | G22: 1323
A23: Process Black | C23: 43 | D23: 41 | E23: 38 | F23: 72817 | G23: 1150
A24: Hexachrome Yellow | C24: 250 | D24: 224 | E24: 23 | F24: 58 | G24: 6
A25: Hexachrome Orange | C25: 245 | D25: 125 | E25: 0 | F25: 8997 | G25: 98
A26: Hexachrome Magenta | C26: 222 | D26: 0 | E26: 130 | F26: 59163 | G26: 1039
A27: Hexachrome Cyan | C27: 0 | D27: 145 | E27: 204 | F27: 98954 | G27: 1317
A28: Hexachrome Green | C28: 0 | D28: 171 | E28: 89 | F28: 67481 | G28: 1115
A29: Hexachrome Black | C29: 33 | D29: 33 | E29: 33 | F29: 79752 | G29: 1202
A30: 100 | C30: 242 | D30: 237 | E30: 130 | F30: 11874 | G30: 130
A31: 101 | C31: 245 | D31: 237 | E31: 89 | F31: 4760 | G31: 64
A32: 102 | C32: 245 | D32: 232 | E32: 20 | F32: 238 | G32: 12
A33: Yellow | C33: 247 | D33: 224 | E33: 23 | F33: 49 | G33: 4
A34: 103 | C34: 196 | D34: 173 | E34: 15 | F34: 4601 | G34: 63
A35: 104 | C35: 168 | D35: 150 | E35: 10 | F35: 10899 | G35: 118
A36: 105 | C36: 128 | D36: 115 | E36: 15 | F36: 24629 | G36: 333
A37: 106 | C37: 245 | D37: 232 | E37: 92 | F37: 4990 | G37: 65
A38: 107 | C38: 245 | D38: 227 | E38: 38 | F38: 329 | G38: 16
A39: 108 | C39: 247 | D39: 219 | E39: 23 | F39: 4 | G39: 2
A40: 109 | C40: 247 | D40: 212 | E40: 23 | F40: 25 | G40: 3
A41: 110 | C41: 212 | D41: 176 | E41: 18 | F41: 2931 | G41: 51
A42: 111 | C42: 168 | D42: 143 | E42: 10 | F42: 11886 | G42: 133
A43: 112 | C43: 148 | D43: 130 | E43: 10 | F43: 17539 | G43: 205
A44: 113 | C44: 247 | D44: 227 | E44: 84 | F44: 3821 | G44: 54
A45: 114 | C45: 247 | D45: 227 | E45: 74 | F45: 2701 | G45: 48
A46: 115 | C46: 250 | D46: 224 | E46: 66 | F46: 1907 | G46: 35
A47: 116 | C47: 247 | D47: 209 | E47: 23 | F47: 64 | G47: 8
A48: 117 | C48: 196 | D48: 158 | E48: 13 | F48: 6182 | G48: 71
A49: 118 | C49: 171 | D49: 140 | E49: 10 | F49: 11874 | G49: 130
A50: 119 | C50: 135 | D50: 117 | E50: 20 | F50: 22553 | G50: 283
A51: 120 | C51: 250 | D51: 224 | E51: 115 | F51: 8522 | G51: 90
A52: 121 | C52: 250 | D52: 222 | E52: 105 | F52: 6758 | G52: 77
A53: 122 | C53: 252 | D53: 214 | E53: 71 | F53: 2338 | G53: 43
A54: 123 | C54: 252 | D54: 201 | E54: 23 | F54: 281 | G54: 13
A55: 124 | C55: 224 | D55: 173 | E55: 18 | F55: 2490 | G55: 45
A56: 125 | C56: 179 | D56: 140 | E56: 10 | F56: 10722 | G56: 116
A57: 126 | C57: 158 | D57: 125 | E57: 10 | F57: 16554 | G57: 192
A58: 1205 | C58: 245 | D58: 227 | E58: 158 | F58: 18329 | G58: 220
A59: 1215 | C59: 245 | D59: 222 | E59: 140 | F59: 13718 | G59: 152
A60: 1225 | C60: 250 | D60: 201 | E60: 61 | F60: 1709 | G60: 34
A61: 1235 | C61: 247 | D61: 181 | E61: 18 | F61: 1321 | G61: 27
A62: 1245 | C62: 191 | D62: 148 | E62: 13 | F62: 7997 | G62: 84
A63: 1255 | C63: 166 | D63: 130 | E63: 0 | F63: 14659 | G63: 161
A64: 1265 | C64: 130 | D64: 102 | E64: 13 | F64: 27014 | G64: 389
A65: 127 | C65: 240 | D65: 224 | E65: 125 | F65: 10502 | G65: 115
A66: 128 | C66: 237 | D66: 217 | E66: 89 | F66: 4456 | G66: 61
A67: 129 | C67: 237 | D67: 207 | E67: 61 | F67: 1644 | G67: 33
A68: 130 | C68: 230 | D68: 176 | E68: 18 | F68: 1995 | G68: 39
A69: 131 | C69: 199 | D69: 148 | E69: 13 | F69: 7165 | G69: 79
A70: 132 | C70: 161 | D70: 125 | E70: 10 | F70: 16029 | G70: 184
A71: 133 | C71: 112 | D71: 89 | E71: 15 | F71: =SUMXMY2(C71:E71,C$3:E$3) -> 34673 | G71: =RANK(F71,$F$6:$F$1348,1) -> 580
A72: 134 | C72: 247 | D72: 214 | E72: 125 | F72: 10413 | G72: 114
A73: 135 | C73: 252 | D73: 201 | E73: 84 | F73: 4002 | G73: 55
A74: 136 | C74: 252 | D74: 189 | E74: 48 | F74: 1434 | G74: 31
A75: 137 | C75: 247 | D75: 163 | E75: 10 | F75: 3085 | G75: 52
A76: 138 | C76: 212 | D76: 133 | E76: 0 | F76: 8810 | G76: 94
A77: 139 | C77: 171 | D77: 115 | E77: 5 | F77: 16504 | G77: 190
A78: 140 | C78: 120 | D78: 87 | E78: 10 | F78: 33198 | G78: 538
A79: 1345 | C79: 250 | D79: 209 | E79: 133 | F79: 12173 | G79: 139
A80: 1355 | C80: 252 | D80: 201 | E80: 117 | F80: 9117 | G80: 100
A81: 1365 | C81: 252 | D81: 184 | E81: 82 | F81: 4595 | G81: 62
A82: 1375 | C82: 250 | D82: 158 | E82: 13 | F82: 3590 | G82: 53
A83: 1385 | C83: 201 | D83: 122 | E83: 0 | F83: 11670 | G83: 126
A84: 1395 | C84: 153 | D84: 99 | E84: 8 | F84: 22985 | G84: 297
A85: 1405 | C85: 107 | D85: 71 | E85: 15 | F85: 40980 | G85: 760
A86: 141 | C86: 237 | D86: 204 | E86: 151 | F86: 16653 | G86: 194
A87: 142 | C87: 237 | D87: 189 | E87: 61 | F87: 2328 | G87: 42
A88: 143 | C88: 235 | D88: 173 | E88: 20 | F88: 2089 | G88: 40
A89: 144 | C89: 222 | D89: 135 | E89: 3 | F89: 7749 | G89: 83
A90: 145 | C90: 194 | D90: 125 | E90: 5 | F90: 11597 | G90: 125
A91: 146 | C91: 150 | D91: 99 | E91: 5 | F91: 23657 | G91: 312
A92: 147 | C92: 112 | D92: 89 | E92: 28 | F92: 34634 | G92: 578
A93: 148 | C93: 252 | D93: 209 | E93: 148 | F93: 15714 | G93: 179
A94: 149 | C94: 255 | D94: 199 | E94: 130 | F94: 11837 | G94: 129
A95: 150 | C95: 252 | D95: 171 | E95: 79 | F95: 5277 | G95: 66
A96: 151 | C96: 242 | D96: 125 | E96: 0 | F96: 9018 | G96: 99
A97: 152 | C97: 217 | D97: 115 | E97: 0 | F97: 11833 | G97: 128
A98: 153 | C98: 184 | D98: 105 | E98: 5 | F98: 16837 | G98: 197
A99: 154 | C99: 150 | D99: 87 | E99: 0 | F99: 26838 | G99: 383
A100: 1485 | C100: 252 | D100: 181 | E100: 122 | F100: 11122 | G100: 120
A101: 1495 | C101: 255 | D101: 153 | E101: 59 | F101: 5456 | G101: 67
A102: 1505 | C102: 242 | D102: 128 | E102: 0 | F102: 8475 | G102: 89
A103: Orange 021 | C103: 237 | D103: 110 | E103: 0 | F103: 12078 | G103: 136
A104: 1525 | C104: 186 | D104: 87 | E104: 0 | F104: 21150 | G104: 261
A105: 1535 | C105: 140 | D105: 68 | E105: 0 | F105: 34179 | G105: 569
A106: 1545 | C106: 79 | D106: 38 | E106: 8 | F106: 60490 | G106: 1054
A107: 155 | C107: 240 | D107: 214 | E107: 168 | F107: 21083 | G107: 259
A108: 156 | C108: 237 | D108: 194 | E108: 130 | F108: 12078 | G108: 136
A109: 157 | C109: 232 | D109: 158 | E109: 71 | F109: 6010 | G109: 69
A110: 158 | C110: 222 | D110: 112 | E110: 8 | F110: 11875 | G110: 132
A111: 159 | C111: 194 | D111: 94 | E111: 3 | F111: 18338 | G111: 221
A112: 160 | C112: 158 | D112: 82 | E112: 5 | F112: 26470 | G112: 374
A113: 161 | C113: 94 | D113: 56 | E113: 18 | F113: 49355 | G113: 931
A114: 1555 | C114: 250 | D114: 191 | E114: 158 | F114: 18910 | G114: 230
A115: 1565 | C115: 250 | D115: 168 | E115: 120 | F115: 11819 | G115: 127
A116: 1575 | C116: 250 | D116: 135 | E116: 61 | F116: 8177 | G116: 87
A117: 1585 | C117: 245 | D117: 112 | E117: 0 | F117: 11558 | G117: 124
A118: 1595 | C118: 209 | D118: 97 | E118: 3 | F118: 16244 | G118: 186
A119: 1605 | C119: 158 | D119: 77 | E119: 10 | F119: 27690 | G119: 402
A120: 1615 | C120: 130 | D120: 61 | E120: 10 | F120: 38194 | G120: 675
A121: 162 | C121: 255 | D121: 194 | E121: 163 | F121: 20193 | G121: 252
A122: 163 | C122: 250 | D122: 156 | E122: 110 | F122: 11299 | G122: 122
A123: 164 | C123: 250 | D123: 128 | E123: 61 | F123: 9374 | G123: 103
A124: 165 | C124: 245 | D124: 102 | E124: 0 | F124: 13758 | G124: 153
A125: 166 | C125: 217 | D125: 89 | E125: 0 | F125: 17813 | G125: 210
A126: 167 | C126: 186 | D126: 82 | E126: 5 | F126: 22270 | G126: 276
A127: 168 | C127: 107 | D127: 48 | E127: 13 | F127: 48261 | G127: 916
A128: 1625 | C128: 250 | D128: 163 | E128: 135 | F128: 15469 | G128: 174
A129: 1635 | C129: 250 | D129: 143 | E129: 107 | F129: 12541 | G129: 143
A130: 1645 | C130: 250 | D130: 110 | E130: 54 | F130: 12419 | G130: 142
A131: 1655 | C131: 242 | D131: 89 | E131: 0 | F131: 16938 | G131: 199
A132: 1665 | C132: 217 | D132: 79 | E132: 0 | F132: 20473 | G132: 253
A133: 1675 | C133: 163 | D133: 61 | E133: 5 | F133: 31716 | G133: 503
A134: 1685 | C134: 133 | D134: 54 | E134: 15 | F134: 39629 | G134: 725
A135: 169 | C135: 250 | D135: 181 | E135: 171 | F135: =SUMXMY2(C135:E135,C$3:E$3) -> 23209 | G135: =RANK(F135,$F$6:$F$1348,1) -> 304
A136: 170 | C136: 250 | D136: 138 | E136: 117 | F136: 15086 | G136: 166
A137: 171 | C137: 250 | D137: 99 | E137: 59 | F137: 15229 | G137: 169
A138: 172 | C138: 242 | D138: 79 | E138: 0 | F138: 19598 | G138: 239
A139: 173 | C139: 212 | D139: 71 | E139: 15 | F139: 22605 | G139: 284
A140: 174 | C140: 150 | D140: 51 | E140: 15 | F140: 37029 | G140: 648
A141: 175 | C141: 112 | D141: 51 | E141: 31 | F141: 45845 | G141: 880
A142: 176 | C142: 250 | D142: 171 | E142: 176 | F142: 25534 | G142: 354
A143: 177 | C143: 250 | D143: 128 | E143: 133 | F143: 20030 | G143: 249
A144: 178 | C144: 250 | D144: 92 | E144: 89 | F144: 19990 | G144: 247
A145: Warm Red | C145: 245 | D145: 64 | E145: 41 | F145: 23737 | G145: 315
A146: 179 | C146: 222 | D146: 59 | E146: 33 | F146: 25689 | G146: 360
A147: 180 | C147: 189 | D147: 56 | E147: 38 | F147: 29510 | G147: 453
A148: 181 | C148: 120 | D148: 41 | E148: 28 | F148: 47130 | G148: 904
A149: 1765 | C149: 250 | D149: 156 | E149: 166 | F149: 24179 | G149: 320
A150: 1775 | C150: 250 | D150: 130 | E150: 143 | F150: 21978 | G150: 272
A151: 1785 | C151: 247 | D151: 69 | E151: 82 | F151: 25385 | G151: 351
A152: 1788 | C152: 235 | D152: 38 | E152: 41 | F152: 32509 | G152: 526
A153: 1795 | C153: 209 | D153: 36 | E153: 33 | F153: 34305 | G153: 574
A154: 1805 | C154: 173 | D154: 38 | E154: 36 | F154: 37686 | G154: 666
A155: 1815 | C155: 120 | D155: 31 | E155: 28 | F155: 50750 | G155: 946
A156: 1767 | C156: 252 | D156: 176 | E156: 186 | F156: 28275 | G156: 418
A157: 1777 | C157: 250 | D157: 99 | E157: 120 | F157: 23342 | G157: 306
A158: 1787 | C158: 245 | D158: 66 | E158: 87 | F158: 26901 | G158: 386
A159: Red 032 | C159: 237 | D159: 46 | E159: 56 | F159: 30430 | G159: 472
A160: 1797 | C160: 204 | D160: 41 | E160: 43 | F160: 33225 | G160: 541
A161: 1807 | C161: 158 | D161: 41 | E161: 43 | F161: 39297 | G161: 716
A162: 1817 | C162: 92 | D162: 38 | E162: 36 | F162: 56235 | G162: 1009
A163: 182 | C163: 252 | D163: 184 | E163: 196 | F163: 31043 | G163: 483
A164: 183 | C164: 252 | D164: 140 | E164: 161 | F164: 24998 | G164: 342
A165: 184 | C165: 247 | D165: 92 | E165: 117 | F165: 24461 | G165: 327
A166: 185 | C166: 230 | D166: 13 | E166: 46 | F166: 42434 | G166: 795
A167: 186 | C167: 207 | D167: 20 | E167: 43 | F167: 40809 | G167: 758
A168: 187 | C168: 176 | D168: 28 | E168: 46 | F168: 41291 | G168: 772
A169: 188 | C169: 125 | D169: 33 | E169: 43 | F169: 49140 | G169: 929
A170: 189 | C170: 250 | D170: 161 | E170: 181 | F170: 28109 | G170: 412
A171: 190 | C171: 247 | D171: 117 | E171: 148 | F171: 25625 | G171: 358
A172: 191 | C172: 240 | D172: 61 | E172: 105 | F172: 31109 | G172: 485
A173: 192 | C173: 227 | D173: 13 | E173: 64 | F173: 43697 | G173: 825
A174: 193 | C174: 191 | D174: 18 | E174: 56 | F174: 43826 | G174: 830
A175: 194 | C175: 153 | D175: 31 | E175: 54 | F175: 44393 | G175: 847
A176: 195 | C176: 117 | D176: 41 | E176: 54 | F176: 48837 | G176: 924
A177: 1895 | C177: 250 | D177: 189 | E177: 204 | F177: 33554 | G177: 554
A178: 1905 | C178: 247 | D178: 153 | E178: 181 | F178: 29060 | G178: 436
A179: 1915 | C179: 242 | D179: 84 | E179: 130 | F179: 29163 | G179: 442
A180: 1925 | C180: 224 | D180: 0 | E180: 71 | F180: 49922 | G180: 938
A181: 1935 | C181: 199 | D181: 5 | E181: 64 | F181: 48929 | G181: 926
A182: 1945 | C182: 166 | D182: 15 | E182: 56 | F182: 48454 | G182: 920
A183: 1955 | C183: 143 | D183: 23 | E183: 54 | F183: 49413 | G183: 933
A184: 196 | C184: 240 | D184: 199 | E184: 201 | F184: 32057 | G184: 510
A185: 197 | C185: 235 | D185: 156 | E185: 168 | F185: 24890 | G185: 338
A186: 198 | C186: 224 | D186: 79 | E186: 102 | F186: 25814 | G186: 364
A187: 199 | C187: 214 | D187: 28 | E187: 56 | F187: 37899 | G187: 670
A188: 200 | C188: 186 | D188: 18 | E188: 43 | F188: 43722 | G188: 826
A189: 201 | C189: 156 | D189: 31 | E189: 46 | F189: 43406 | G189: 817
A190: 202 | C190: 135 | D190: 33 | E190: 46 | F190: 46929 | G190: 901
A191: 203 | C191: 237 | D191: 171 | E191: 194 | F191: 31457 | G191: 495
A192: 204 | C192: 232 | D192: 122 | E192: 163 | F192: 28850 | G192: 427
A193: 205 | C193: 224 | D193: 69 | E193: 122 | F193: 32234 | G193: 515
A194: 206 | C194: 207 | D194: 5 | E194: 69 | F194: 48660 | G194: 922
A195: 207 | C195: 173 | D195: 3 | E195: 59 | F195: 52568 | G195: 970
A196: 208 | C196: 143 | D196: 33 | E196: 64 | F196: 46353 | G196: 887
A197: 209 | C197: 117 | D197: 38 | E197: 59 | F197: 50237 | G197: 943
A198: 210 | C198: 255 | D198: 158 | E198: 194 | F198: 32786 | G198: 532
A199: 211 | C199: 252 | D199: 122 | E199: 176 | F199: =SUMXMY2(C199:E199,C$3:E$3) -> 32459 | G199: =RANK(F199,$F$6:$F$1348,1) -> 525
A200: 212 | C200: 245 | D200: 74 | E200: 145 | F200: 35337 | G200: 595
... 1148 more rows
